fUST/lending_fUST_20240828
["ID","MTS","AMOUNT","RATE_DAILY","PERIOD"]
[336450245,1724831450722,-500.0,0.00012054,2]
[336450246,1724831450731,-500.0,0.00012054,2]
[336450247,1724831450741,-3381.91,0.00012054,2]
[336450248,1724831450752,-222.59866188,0.00012054,2]
[336450249,1724831450762,-500.0,0.00012054,2]
[336450250,1724831450773,-502.81174126,0.00012054,2]
[336450251,1724831450782,-500.0,0.00012054,2]
[336450252,1724831450791,-500.0,0.00012054,2]
[336450253,1724831450801,-1070.06,0.00012054,2]
[336450254,1724831450810,-500.0,0.00012054,2]
[336450255,1724831450819,-501.71882205,0.00012054,2]
[336450256,1724831450829,-500.0,0.00012054,2]
[336450257,1724831450839,-500.0,0.00012054,2]
[336450258,1724831450849,-500.0,0.00012054,2]
[336450259,1724831450859,-500.0,0.00012054,2]
[336450260,1724831450869,-500.0,0.00012054,2]
[336450261,1724831450879,-500.0,0.00012054,2]
[336450262,1724831450889,-500.0,0.00012054,2]
[336450263,1724831450898,-1044.45,0.00012054,2]
[336450264,1724831450909,-2576.32,0.00012054,2]
[336450265,1724831450919,-500.0,0.00012054,2]
[336450266,1724831450930,-487.09,0.00012054,2]
[336450267,1724831450940,-500.0,0.00012054,2]
[336450268,1724831450951,-9401.39378166,0.0001218,2]
[336450269,1724831450961,-422.69720013,0.00012293,2]
[336450270,1724831450972,-166.22384774,0.00012293,2]
[336450271,1724831450982,-500.0,0.00012328,2]
[336450272,1724831450993,-500.0,0.00012328,2]
[336450273,1724831451003,-500.0,0.00012328,2]
[336450274,1724831451012,-500.0,0.00012328,2]
[336450275,1724831451022,-500.0,0.00012328,2]
[336450276,1724831451032,-500.0,0.00012328,2]
[336450277,1724831451043,-449.93562213,0.00012328,2]
[336450278,1724831451150,-500.0,0.00012328,2]
[336450279,1724831451162,-500.0,0.00012328,2]
[336450280,1724831451174,-500.0,0.00012328,2]
[336450281,1724831451183,-500.0,0.00012328,2]
[336450282,1724831451193,-209.08330694,0.00012328,2]
[336450283,1724831451203,-500.0,0.00012328,2]
[336450284,1724831451213,-500.0,0.00012328,2]
[336450285,1724831451222,-500.0,0.00012328,2]
[336450286,1724831451231,-500.0,0.00012328,2]
[336450287,1724831451240,-500.0,0.00012328,2]
[336450288,1724831451249,-500.0,0.00012328,2]
[336450289,1724831451258,-500.0,0.00012328,2]
[336450290,1724831451270,-500.0,0.00012328,2]
[336450291,1724831451279,-500.0,0.00012328,2]
[336450292,1724831451288,-500.0,0.00012328,2]
[336450293,1724831451297,-500.0,0.00012328,2]
[336450294,1724831451307,-500.0,0.00012328,2]
[336450295,1724831451316,-500.0,0.00012328,2]
[336450296,1724831451325,-500.0,0.00012328,2]
[336450297,1724831451334,-1164.21,0.00012328,2]
[336450298,1724831451343,-500.0,0.00012328,2]
[336450299,1724831451352,-2077.7,0.00012328,2]
[336450300,1724831451362,-848.26,0.00012328,2]
[336450301,1724831451371,-965.99,0.00012328,2]
[336450302,1724831451381,-500.0,0.00012328,2]
[336450303,1724831451391,-500.0,0.00012328,2]
[336450304,1724831451400,-500.0,0.00012328,2]
[336450305,1724831451409,-500.0,0.00012328,2]
[336450306,1724831451419,-500.0,0.00012328,2]
[336450307,1724831451429,-500.0,0.00012328,2]
[336450308,1724831451440,-500.0,0.00012328,2]
[336450309,1724831451452,-6837.97,0.00012328,2]
[336450310,1724831451462,-500.0,0.00012328,2]
[336450311,1724831451471,-504.15819514,0.00012328,2]
[336450312,1724831451481,-500.0,0.00012328,2]
[336450313,1724831451491,-500.0,0.00012328,2]
[336450314,1724831451500,-675.44,0.00012328,2]
[336450315,1724831451509,-500.0,0.00012328,2]
[336450316,1724831451521,-500.0,0.00012328,2]
[336450317,1724831451532,-614.50715078,0.00012328,2]
[336450318,1724831451542,-500.0,0.00012328,2]
[336450319,1724831451551,-500.0,0.00012328,2]
[336450320,1724831451560,-192.47314059,0.00012328,2]
[336450321,1724831451570,-500.0,0.00012328,2]
[336450322,1724831451579,-500.0,0.00012328,2]
[336450323,1724831451589,-500.0,0.00012328,2]
[336450324,1724831451599,-500.0,0.00012328,2]
[336450325,1724831451612,-500.0,0.00012328,2]
[336450326,1724831451623,-500.0,0.00012328,2]
[336450327,1724831451633,-500.0,0.00012328,2]
[336450328,1724831451644,-616.07,0.00012328,2]
[336450329,1724831451655,-500.0,0.00012328,2]
[336450330,1724831451665,-500.0,0.00012328,2]
[336450331,1724831451677,-252.10264399,0.00012328,2]
[336450332,1724831451686,-500.0,0.00012328,2]
[336450333,1724831451698,-500.0,0.00012328,2]
[336450334,1724831451708,-675.48,0.00012328,2]
[336450335,1724831451719,-500.0,0.00012328,2]
[336450336,1724831451731,-1892.98,0.00012328,2]
[336450337,1724831451740,-500.0,0.00012328,2]
[336450338,1724831451751,-500.0,0.00012328,2]
[336450339,1724831451764,-500.0,0.00012328,2]
[336450340,1724831451774,-500.0,0.00012328,2]
[336450341,1724831451784,-500.0,0.00012328,2]
[336450342,1724831451794,-500.0,0.00012328,2]
[336450343,1724831451803,-500.0,0.00012328,2]
[336450344,1724831451814,-500.0,0.00012328,2]
[336450345,1724831451824,-500.0,0.00012328,2]
[336450346,1724831451833,-500.0,0.00012328,2]
[336450347,1724831451843,-3381.91,0.00012328,2]
[336450348,1724831451853,-500.0,0.00012328,2]
[336450349,1724831451862,-500.0,0.00012328,2]
[336450350,1724831451872,-500.0,0.00012328,2]
[336450351,1724831451883,-1070.06,0.00012328,2]
[336450352,1724831451892,-500.0,0.00012328,2]
[336450353,1724831451901,-500.0,0.00012328,2]
[336450354,1724831451910,-500.0,0.00012328,2]
[336450355,1724831451919,-500.0,0.00012328,2]
[336450356,1724831451929,-500.0,0.00012328,2]
[336450357,1724831451939,-500.0,0.00012328,2]
[336450358,1724831451949,-500.0,0.00012328,2]
[336450359,1724831451959,-500.0,0.00012328,2]
[336450360,1724831451968,-1044.45,0.00012328,2]
[336450361,1724831451978,-2576.32,0.00012328,2]
[336450362,1724831451989,-500.0,0.00012328,2]
[336450363,1724831451998,-492.86,0.00012328,2]
[336450364,1724831452008,-4372.18459631,0.00012356,2]
[336450365,1724831452018,-600.0,0.00012416,2]
[336450366,1724831452028,-9401.39378166,0.00012529,2]
[336450367,1724831452039,-9649.55825762,0.00012551,2]
[336450368,1724831452050,-500.0,0.00012602,2]
[336450369,1724831452062,-500.0,0.00012602,2]
[336450370,1724831452073,-500.0,0.00012602,2]
[336450371,1724831452083,-500.0,0.00012602,2]
[336450372,1724831452091,-166.74,0.00012602,2]
[336450373,1724831452100,-500.0,0.00012602,2]
[336450374,1724831452109,-500.0,0.00012602,2]
[336450375,1724831452118,-500.0,0.00012602,2]
[336450376,1724831452128,-500.0,0.00012602,2]
[336450377,1724831452140,-500.0,0.00012602,2]
[336450378,1724831452150,-500.0,0.00012602,2]
[336450379,1724831452160,-500.0,0.00012602,2]
[336450380,1724831452171,-324.03,0.00012602,2]
[336450381,1724831452181,-500.0,0.00012602,2]
[336450382,1724831452191,-500.0,0.00012602,2]
[336450383,1724831452201,-500.0,0.00012602,2]
[336450384,1724831452212,-537.98,0.00012602,2]
[336450385,1724831452221,-371.08219005,0.00012602,2]
[336450386,1724831452230,-500.0,0.00012602,2]
[336450387,1724831452240,-500.0,0.00012602,2]
[336450388,1724831452249,-1164.21,0.00012602,2]
[336450389,1724831452260,-500.0,0.00012602,2]
[336450390,1724831452271,-2077.7,0.00012602,2]
[336450391,1724831452280,-848.26,0.00012602,2]
[336450392,1724831452291,-965.99,0.00012602,2]
[336450393,1724831452301,-500.0,0.00012602,2]
[336450394,1724831452311,-500.0,0.00012602,2]
[336450395,1724831452320,-500.0,0.00012602,2]
[336450396,1724831452338,-500.0,0.00012602,2]
[336450397,1724831452355,-202.38992962,0.00012602,2]
[336450398,1724831452369,-500.0,0.00012602,2]
[336450399,1724831452381,-432.77902595,0.00012602,2]
[336450400,1724831452394,-6837.97,0.00012602,2]
[336450401,1724831452408,-500.0,0.00012602,2]
[336450402,1724831452423,-500.0,0.00012602,2]
[336450403,1724831452437,-500.0,0.00012602,2]
[336450404,1724831452455,-675.44,0.00012602,2]
[336450405,1724831452468,-500.0,0.00012602,2]
[336450406,1724831452485,-500.0,0.00012602,2]
[336450407,1724831452499,-500.0,0.00012602,2]
[336450408,1724831452515,-500.0,0.00012602,2]
[336450409,1724831452529,-500.0,0.00012602,2]
[336450410,1724831452544,-500.0,0.00012602,2]
[336450411,1724831452560,-500.0,0.00012602,2]
[336450412,1724831452574,-500.0,0.00012602,2]
[336450413,1724831452586,-500.0,0.00012602,2]
[336450414,1724831452600,-500.0,0.00012602,2]
[336450415,1724831452613,-500.0,0.00012602,2]
[336450416,1724831452628,-616.07,0.00012602,2]
[336450417,1724831452643,-500.0,0.00012602,2]
[336450418,1724831452657,-134.71572538,0.00012602,2]
[336450419,1724831453012,-500.0,0.00010958,2]
[336450420,1724831453029,-235.26427462,0.00012602,2]
[336450421,1724831453043,-500.0,0.00012602,2]
[336450422,1724831453057,-500.0,0.00012602,2]
[336450423,1724831453070,-675.48,0.00012602,2]
[336450424,1724831453083,-500.0,0.00012602,2]
[336450425,1724831453096,-1892.98,0.00012602,2]
[336450426,1724831453109,-500.0,0.00012602,2]
[336450427,1724831453123,-500.0,0.00012602,2]
[336450428,1724831453136,-500.0,0.00012602,2]
[336450429,1724831453148,-500.0,0.00012602,2]
[336450430,1724831453160,-500.0,0.00012602,2]
[336450431,1724831453171,-500.0,0.00012602,2]
[336450432,1724831453181,-472.38,0.00012602,2]
[336450433,1724831453191,-500.0,0.00012602,2]
[336450434,1724831453203,-500.0,0.00012602,2]
[336450435,1724831453213,-500.0,0.00012602,2]
[336450436,1724831453223,-3381.91,0.00012602,2]
[336450437,1724831453234,-389.32,0.00012602,2]
[336450438,1724831453243,-500.0,0.00012602,2]
[336450439,1724831453253,-500.0,0.00012602,2]
[336450440,1724831453263,-1070.06,0.00012602,2]
[336450441,1724831453276,-500.0,0.00012602,2]
[336450442,1724831453286,-500.0,0.00012602,2]
[336450443,1724831453298,-282.97427794,0.00012602,2]
[336450444,1724831453307,-605.56578224,0.00012602,2]
[336450445,1724831453317,-500.0,0.00012602,2]
[336450446,1724831453327,-500.0,0.00012602,2]
[336450447,1724831453337,-500.0,0.00012602,2]
[336450448,1724831453347,-165.69,0.00012602,2]
[336450449,1724831453356,-1044.45,0.00012602,2]
[336450450,1724831453366,-2576.32,0.00012602,2]
[336450451,1724831453376,-500.0,0.00012602,2]
[336450452,1724831453386,-2611.26711056,0.00012629,2]
[336450453,1724831453396,-600.0,0.00012714,2]
[336450454,1724831453405,-500.0,0.00012719,2]
[336450455,1724831453415,-600.0,0.00012756,2]
[336450456,1724831453426,-600.0,0.00012756,2]
[336450457,1724831453437,-2095.72295277,0.00012779,2]
[336450458,1724831453447,-500.0,0.00012876,2]
[336450459,1724831453459,-500.0,0.00012876,2]
[336450460,1724831453469,-270.68796279,0.00012876,2]
[336450461,1724831453480,-500.0,0.00012876,2]
[336450462,1724831453491,-500.0,0.00012876,2]
[336450463,1724831453500,-500.0,0.00012876,2]
[336450464,1724831453510,-500.0,0.00012876,2]
[336450465,1724831453521,-359.47,0.00012876,2]
[336450466,1724831453532,-500.0,0.00012876,2]
[336450467,1724831453541,-500.0,0.00012876,2]
[336450468,1724831453754,-155.40099831,0.00012876,2]
[336450469,1724831453773,-500.0,0.00012876,2]
[336450470,1724831453786,-500.0,0.00012876,2]
[336450471,1724831453796,-500.0,0.00012876,2]
[336450472,1724831453807,-500.0,0.00012876,2]
[336450473,1724831453817,-500.0,0.00012876,2]
[336450474,1724831453826,-1164.21,0.00012876,2]
[336450475,1724831453836,-500.0,0.00012876,2]
[336450476,1724831453846,-2077.7,0.00012876,2]
[336450477,1724831453855,-848.26,0.00012876,2]
[336450478,1724831453865,-965.99,0.00012876,2]
[336450479,1724831453874,-500.0,0.00012876,2]
[336450480,1724831453884,-500.0,0.00012876,2]
[336450481,1724831453894,-500.0,0.00012876,2]
[336450482,1724831453904,-500.0,0.00012876,2]
[336450483,1724831453915,-500.0,0.00012876,2]
[336450484,1724831453927,-6837.97,0.00012876,2]
[336450485,1724831453938,-500.0,0.00012876,2]
[336450486,1724831453948,-500.0,0.00012876,2]
[336450487,1724831453959,-500.0,0.00012876,2]
[336450488,1724831453969,-675.44,0.00012876,2]
[336450489,1724831453979,-500.0,0.00012876,2]
[336450490,1724831453990,-500.0,0.00012876,2]
[336450491,1724831454000,-500.0,0.00012876,2]
[336450492,1724831454011,-500.0,0.00012876,2]
[336450493,1724831454023,-500.0,0.00012876,2]
[336450494,1724831454035,-500.0,0.00012876,2]
[336450495,1724831454044,-500.0,0.00012876,2]
[336450496,1724831454054,-500.0,0.00012876,2]
[336450497,1724831454064,-500.0,0.00012876,2]
[336450498,1724831454075,-586.89,0.00012876,2]
[336450499,1724831454085,-616.07,0.00012876,2]
[336450500,1724831454095,-500.0,0.00012876,2]
[336450501,1724831454104,-500.0,0.00012876,2]
[336450502,1724831454114,-500.0,0.00012876,2]
[336450503,1724831454123,-675.48,0.00012876,2]
[336450504,1724831454133,-500.0,0.00012876,2]
[336450505,1724831454142,-1892.98,0.00012876,2]
[336450506,1724831454152,-500.0,0.00012876,2]
[336450507,1724831454162,-500.0,0.00012876,2]
[336450508,1724831454171,-500.0,0.00012876,2]
[336450509,1724831454182,-500.0,0.00012876,2]
[336450510,1724831454192,-500.0,0.00012876,2]
[336450511,1724831454201,-450.42,0.00012876,2]
[336450512,1724831454210,-500.0,0.00012876,2]
[336450513,1724831454220,-500.0,0.00012876,2]
[336450514,1724831454231,-500.0,0.00012876,2]
[336450515,1724831454241,-3381.91,0.00012876,2]
[336450516,1724831454250,-500.0,0.00012876,2]
[336450517,1724831454260,-500.0,0.00012876,2]
[336450518,1724831454271,-1070.06,0.00012876,2]
[336450519,1724831454281,-500.0,0.00012876,2]
[336450520,1724831454291,-500.0,0.00012876,2]
[336450521,1724831454302,-500.0,0.00012876,2]
[336450522,1724831454313,-500.0,0.00012876,2]
[336450523,1724831454324,-500.0,0.00012876,2]
[336450524,1724831454333,-1044.45,0.00012876,2]
[336450525,1724831454343,-2576.32,0.00012876,2]
[336450526,1724831454352,-274.72498908,0.00012876,2]
[336450527,1724831454362,-22012.3355288,0.00012898,2]
[336450528,1724831454371,-151.0,0.00012898,2]
[336450529,1724831454381,-232.967245,0.00012898,2]
[336450530,1724831454391,-151.0,0.00012898,2]
[336450531,1724831454402,-515.872543,0.00012898,2]
[336450532,1724831454411,-515.872543,0.00012898,2]
[336450533,1724831454420,-1931.66232604,0.000129,2]
[336450534,1724831454429,-452.22132183,0.00012934,2]
[336450535,1724831454439,-535.33512,0.00012934,2]
[336450536,1724831454450,-600.0,0.00012939,2]
[336450537,1724831454460,-934.65211132,0.00012971,2]
[336450538,1724831454469,-493.77204427,0.00012999,2]
[336450539,1724831454479,-493.77204427,0.00012999,2]
[336450540,1724831454488,-150.112233,0.00013,2]
[336450541,1724831454498,-863.27824545,0.00013,2]
[336450542,1724831454508,-150.112233,0.00013,2]
[336450543,1724831454517,-665.79988618,0.00013051,2]
[336450544,1724831454528,-500.0,0.0001315,2]
[336450545,1724831454537,-500.0,0.0001315,2]
[336450546,1724831454546,-297.47046533,0.0001315,2]
[336450547,1724831454555,-489.26141307,0.0001315,2]
[336450548,1724831454565,-500.0,0.0001315,2]
[336450549,1724831454575,-500.0,0.0001315,2]
[336450550,1724831454584,-503.97129536,0.0001315,2]
[336450551,1724831454594,-234.23,0.0001315,2]
[336450552,1724831454604,-500.0,0.0001315,2]
[336450553,1724831454615,-500.0,0.0001315,2]
[336450554,1724831454625,-500.0,0.0001315,2]
[336450555,1724831454636,-500.0,0.0001315,2]
[336450556,1724831454646,-500.0,0.0001315,2]
[336450557,1724831454657,-1164.21,0.0001315,2]
[336450558,1724831454667,-500.0,0.0001315,2]
[336450559,1724831454677,-2077.7,0.0001315,2]
[336450560,1724831454689,-848.26,0.0001315,2]
[336450561,1724831454699,-965.99,0.0001315,2]
[336450562,1724831454712,-500.0,0.0001315,2]
[336450563,1724831454723,-500.0,0.0001315,2]
[336450564,1724831454735,-500.0,0.0001315,2]
[336450565,1724831454747,-500.0,0.0001315,2]
[336450566,1724831454756,-500.0,0.0001315,2]
[336450567,1724831454766,-6837.97,0.0001315,2]
[336450568,1724831454776,-500.0,0.0001315,2]
[336450569,1724831454787,-500.0,0.0001315,2]
[336450570,1724831454797,-500.0,0.0001315,2]
[336450571,1724831454807,-675.44,0.0001315,2]
[336450572,1724831454817,-500.0,0.0001315,2]
[336450573,1724831454828,-150.27940324,0.0001315,2]
[336450574,1724831454839,-540.00148259,0.0001315,2]
[336450575,1724831454849,-500.0,0.0001315,2]
[336450576,1724831454859,-546.1552545,0.0001315,2]
[336450577,1724831454868,-500.0,0.0001315,2]
[336450578,1724831454878,-500.0,0.0001315,2]
[336450579,1724831454889,-500.0,0.0001315,2]
[336450580,1724831454902,-500.0,0.0001315,2]
[336450581,1724831454914,-616.07,0.0001315,2]
[336450582,1724831454924,-500.0,0.0001315,2]
[336450583,1724831454934,-500.0,0.0001315,2]
[336450584,1724831454943,-500.0,0.0001315,2]
[336450585,1724831454952,-675.48,0.0001315,2]
[336450586,1724831454962,-500.0,0.0001315,2]
[336450587,1724831454972,-1892.98,0.0001315,2]
[336450588,1724831454981,-500.0,0.0001315,2]
[336450589,1724831454991,-500.0,0.0001315,2]
[336450590,1724831455001,-500.0,0.0001315,2]
[336450591,1724831455011,-500.0,0.0001315,2]
[336450592,1724831455023,-500.0,0.0001315,2]
[336450593,1724831455034,-500.0,0.0001315,2]
[336450594,1724831455044,-500.0,0.0001315,2]
[336450595,1724831455053,-630.07,0.0001315,2]
[336450596,1724831455063,-3381.91,0.0001315,2]
[336450597,1724831455074,-500.0,0.0001315,2]
[336450598,1724831455084,-500.0,0.0001315,2]
[336450599,1724831455094,-1070.06,0.0001315,2]
[336450600,1724831455103,-500.0,0.0001315,2]
[336450601,1724831455114,-500.0,0.0001315,2]
[336450602,1724831455123,-500.0,0.0001315,2]
[336450603,1724831455133,-500.0,0.0001315,2]
[336450604,1724831455143,-500.0,0.0001315,2]
[336450605,1724831455152,-1044.45,0.0001315,2]
[336450606,1724831455162,-2576.32,0.0001315,2]
[336450607,1724831455172,-600.0,0.00013237,2]
[336450608,1724831455181,-600.0,0.00013277,2]
[336450609,1724831455192,-600.0,0.00013287,2]
[336450610,1724831455203,-236.96619364,0.00013333,2]
[336450611,1724831455212,-175.84774053,0.00013333,2]
[336450612,1724831455223,-570.08379393,0.00013333,2]
[336450613,1724831455233,-500.0,0.00013424,2]
[336450614,1724831455242,-500.0,0.00013424,2]
[336450615,1724831455252,-500.0,0.00013424,2]
[336450616,1724831455262,-500.0,0.00013424,2]
[336450617,1724831455274,-154.29542438,0.00013424,2]
[336450618,1724831455284,-447.90477535,0.00013424,2]
[336450619,1724831455293,-475.10908534,0.00013424,2]
[336450620,1724831455303,-500.0,0.00013424,2]
[336450621,1724831455313,-500.0,0.00013424,2]
[336450622,1724831455322,-1164.21,0.00013424,2]
[336450623,1724831455331,-500.0,0.00013424,2]
[336450624,1724831455341,-2077.7,0.00013424,2]
[336450625,1724831455352,-848.26,0.00013424,2]
[336450626,1724831455361,-965.99,0.00013424,2]
[336450627,1724831455370,-500.0,0.00013424,2]
[336450628,1724831455380,-500.0,0.00013424,2]
[336450629,1724831455390,-500.0,0.00013424,2]
[336450630,1724831455400,-500.0,0.00013424,2]
[336450631,1724831455409,-500.0,0.00013424,2]
[336450632,1724831455418,-6837.97,0.00013424,2]
[336450633,1724831455428,-500.0,0.00013424,2]
[336450634,1724831455438,-500.0,0.00013424,2]
[336450635,1724831455448,-500.0,0.00013424,2]
[336450636,1724831455461,-675.44,0.00013424,2]
[336450637,1724831455470,-500.0,0.00013424,2]
[336450638,1724831455479,-500.0,0.00013424,2]
[336450639,1724831455490,-500.0,0.00013424,2]
[336450640,1724831455499,-500.0,0.00013424,2]
[336450641,1724831455509,-500.0,0.00013424,2]
[336450642,1724831455520,-504.26473185,0.00013424,2]
[336450643,1724831455532,-616.07,0.00013424,2]
[336450644,1724831455542,-500.0,0.00013424,2]
[336450645,1724831455551,-500.0,0.00013424,2]
[336450646,1724831455561,-675.48,0.00013424,2]
[336450647,1724831455571,-500.0,0.00013424,2]
[336450648,1724831455580,-1892.98,0.00013424,2]
[336450649,1724831455590,-500.0,0.00013424,2]
[336450650,1724831455599,-500.0,0.00013424,2]
[336450651,1724831455609,-500.0,0.00013424,2]
[336450652,1724831455618,-500.0,0.00013424,2]
[336450653,1724831455627,-500.0,0.00013424,2]
[336450654,1724831455637,-500.0,0.00013424,2]
[336450655,1724831455647,-500.0,0.00013424,2]
[336450656,1724831455656,-3381.91,0.00013424,2]
[336450657,1724831455666,-500.0,0.00013424,2]
[336450658,1724831455675,-500.0,0.00013424,2]
[336450659,1724831455685,-1070.06,0.00013424,2]
[336450660,1724831455694,-396.93,0.00013424,2]
[336450661,1724831455704,-500.0,0.00013424,2]
[336450662,1724831455713,-500.0,0.00013424,2]
[336450663,1724831455723,-301.55009696,0.00013424,2]
[336450664,1724831455732,-500.0,0.00013424,2]
[336450665,1724831455743,-1044.45,0.00013424,2]
[336450666,1724831455753,-2576.32,0.00013424,2]
[336450667,1724831455762,-751.97281741,0.00013553,2]
[336450668,1724831455774,-157.24081456,0.00013599,2]
[336450669,1724831455784,-157.24081456,0.00013599,2]
[336450670,1724831455795,-521.48215482,0.00013688,2]
[336450671,1724831455805,-500.0,0.00013698,2]
[336450672,1724831455815,-544.54547406,0.00013698,2]
[336450673,1724831455824,-544.54547406,0.00013698,2]
[336450674,1724831455834,-544.54547406,0.00013698,2]
[336450675,1724831455844,-544.54547406,0.00013698,2]
[336450676,1724831455853,-544.54547406,0.00013698,2]
[336450677,1724831455862,-544.54547406,0.00013698,2]
[336450678,1724831455872,-544.54547406,0.00013698,2]
[336450679,1724831455881,-544.54547406,0.00013698,2]
[336450680,1724831455891,-544.54547406,0.00013698,2]
[336450681,1724831455900,-544.54547406,0.00013698,2]
[336450682,1724831455909,-500.0,0.00013698,2]
[336450683,1724831455919,-544.54547406,0.00013698,2]
[336450684,1724831455928,-544.54547406,0.00013698,2]
[336450685,1724831455938,-544.54547406,0.00013698,2]
[336450686,1724831455948,-544.54547406,0.00013698,2]
[336450687,1724831455957,-564.54675196,0.00013698,2]
[336450688,1724831455967,-195.5494493,0.00013698,2]
[336450689,1724831455976,-475.05411845,0.00013698,2]
[336450690,1724831455986,-259.48104901,0.00013698,2]
[336450691,1724831455996,-937.3612364,0.00013698,2]
[336450692,1724831456007,-937.3612364,0.00013698,2]
[336450693,1724831456018,-937.3612364,0.00013698,2]
[336450694,1724831456028,-937.3612364,0.00013698,2]
[336450695,1724831456037,-937.3612364,0.00013698,2]
[336450696,1724831456046,-937.3612364,0.00013698,2]
[336450697,1724831456055,-937.3612364,0.00013698,2]
[336450698,1724831456065,-937.3612364,0.00013698,2]
[336450699,1724831456074,-937.3612364,0.00013698,2]
[336450700,1724831456084,-949.51221539,0.00013698,2]
[336450701,1724831456093,-949.51221539,0.00013698,2]
[336450702,1724831456102,-500.0,0.00013698,2]
[336450703,1724831456112,-500.0,0.00013698,2]
[336450704,1724831456121,-500.0,0.00013698,2]
[336450705,1724831456130,-500.0,0.00013698,2]
[336450706,1724831456140,-500.0,0.00013698,2]
[336450707,1724831456153,-1164.21,0.00013698,2]
[336450708,1724831456162,-500.0,0.00013698,2]
[336450709,1724831456172,-2077.7,0.00013698,2]
[336450710,1724831456181,-848.26,0.00013698,2]
[336450711,1724831456191,-965.99,0.00013698,2]
[336450712,1724831456201,-500.0,0.00013698,2]
[336450713,1724831456211,-500.0,0.00013698,2]
[336450714,1724831456220,-500.0,0.00013698,2]
[336450715,1724831456229,-500.0,0.00013698,2]
[336450716,1724831456238,-500.0,0.00013698,2]
[336450717,1724831456247,-6837.97,0.00013698,2]
[336450718,1724831456256,-500.0,0.00013698,2]
[336450719,1724831456267,-295.02,0.00013698,2]
[336450720,1724831456278,-500.0,0.00013698,2]
[336450721,1724831456288,-675.44,0.00013698,2]
[336450722,1724831456298,-500.0,0.00013698,2]
[336450723,1724831456308,-500.0,0.00013698,2]
[336450724,1724831456318,-500.0,0.00013698,2]
[336450725,1724831456327,-634.70773225,0.00013698,2]
[336450726,1724831456336,-500.0,0.00013698,2]
[336450727,1724831456346,-616.07,0.00013698,2]
[336450728,1724831456355,-554.37,0.00013698,2]
[336450729,1724831456365,-500.0,0.00013698,2]
[336450730,1724831456375,-675.48,0.00013698,2]
[336450731,1724831456384,-1892.98,0.00013698,2]
[336450732,1724831456393,-274.12,0.00013698,2]
[336450733,1724831456403,-500.0,0.00013698,2]
[336450734,1724831456412,-500.0,0.00013698,2]
[336450735,1724831456421,-500.0,0.00013698,2]
[336450736,1724831456431,-500.0,0.00013698,2]
[336450737,1724831456441,-500.0,0.00013698,2]
[336450738,1724831456452,-3381.91,0.00013698,2]
[336450739,1724831456462,-500.0,0.00013698,2]
[336450740,1724831456471,-294.02,0.00013698,2]
[336450741,1724831456480,-1070.06,0.00013698,2]
[336450742,1724831456490,-190.35,0.00013698,2]
[336450743,1724831456500,-500.0,0.00013698,2]
[336450744,1724831456510,-1044.45,0.00013698,2]